Workbook

Sheet فاتورة مبيعات
A4: رقم الفاتورة | B4: التاريخ | C4: اسم العميل | D4: نوع المادة | E4: الكمية | F4: السعر | G4: الاجمالى | H4: المدفوع | I4: الباقي | J4: طريقة الدفع | K4: البيان | L4: الصندوق | M4: المستودع | N4: الترحيل
E5: 4 | F5: 4
E6: 4 | F6: 4
E7: 5 | F7: 5
E8: 5 | F8: 5

Sheet مبيعات
A1: رقم الفاتورة | B1: التاريخ | C1: اسم العميل | D1: نوع المادة | E1: الكمية | F1: السعر | G1: الاجمالى | H1: المدفوع | I1: الباقي | J1: طريقة الدفع | K1: البيان | L1: الصندوق | M1: المستودع | N1: الترحيل

Sheet مج الانتاج
A1: م | B1: التاريخ | C1: لارج اح | D1: ميديوم اح | E1: سمول | F1: ميديوم | G1: لارج | H1: دبل ثلاثون بيضة | I1: بيض دبل عشرين بيضة | J1: كسر | K1: المجموع
A2: 1 | B2: 2024-09-01 | C2: ='h1'!B2+'h2'!B2+'h3'!B2 -> 7 | D2: ='h1'!C2+'h2'!C2+'h3'!C2 -> 126 | E2: ='h1'!D2+'h2'!D2+'h3'!D2 -> 0 | F2: ='h1'!E2+'h2'!E2+'h3'!E2 -> 530 | G2: ='h1'!F2+'h2'!F2+'h3'!F2 -> 165 | H2: ='h1'!G2+'h2'!G2+'h3'!G2 -> 0 | I2: ='h1'!H2+'h2'!H2+'h3'!H2 -> 0 | J2: ='h1'!I2+'h2'!I2+'h3'!I2 -> 16 | K2: =SUM(C2:J2) -> 844
A3: 2 | B3: 2024-09-02 | C3: ='h1'!B3+'h2'!B3+'h3'!B3 -> 5 | D3: ='h1'!C3+'h2'!C3+'h3'!C3 -> 128 | E3: ='h1'!D3+'h2'!D3+'h3'!D3 -> 0 | F3: ='h1'!E3+'h2'!E3+'h3'!E3 -> 553 | G3: ='h1'!F3+'h2'!F3+'h3'!F3 -> 143 | H3: ='h1'!G3+'h2'!G3+'h3'!G3 -> 0 | I3: ='h1'!H3+'h2'!H3+'h3'!H3 -> 0 | J3: ='h1'!I3+'h2'!I3+'h3'!I3 -> 16 | K3: 845
A4: 3 | B4: 2024-09-03 | C4: ='h1'!B4+'h2'!B4+'h3'!B4 -> 7 | D4: ='h1'!C4+'h2'!C4+'h3'!C4 -> 127 | E4: ='h1'!D4+'h2'!D4+'h3'!D4 -> 0 | F4: ='h1'!E4+'h2'!E4+'h3'!E4 -> 520 | G4: ='h1'!F4+'h2'!F4+'h3'!F4 -> 170 | H4: ='h1'!G4+'h2'!G4+'h3'!G4 -> 0 | I4: ='h1'!H4+'h2'!H4+'h3'!H4 -> 1 | J4: ='h1'!I4+'h2'!I4+'h3'!I4 -> 17 | K4: 842
A5: 4 | B5: 2024-09-04 | C5: ='h1'!B5+'h2'!B5+'h3'!B5 -> 5 | D5: ='h1'!C5+'h2'!C5+'h3'!C5 -> 129 | E5: ='h1'!D5+'h2'!D5+'h3'!D5 -> 0 | F5: ='h1'!E5+'h2'!E5+'h3'!E5 -> 516 | G5: ='h1'!F5+'h2'!F5+'h3'!F5 -> 159 | H5: ='h1'!G5+'h2'!G5+'h3'!G5 -> 0 | I5: ='h1'!H5+'h2'!H5+'h3'!H5 -> 1 | J5: ='h1'!I5+'h2'!I5+'h3'!I5 -> 16 | K5: 826
A6: 5 | B6: 2024-09-05 | C6: ='h1'!B6+'h2'!B6+'h3'!B6 -> 13 | D6: ='h1'!C6+'h2'!C6+'h3'!C6 -> 125 | E6: ='h1'!D6+'h2'!D6+'h3'!D6 -> 0 | F6: ='h1'!E6+'h2'!E6+'h3'!E6 -> 527 | G6: ='h1'!F6+'h2'!F6+'h3'!F6 -> 185 | H6: ='h1'!G6+'h2'!G6+'h3'!G6 -> 0 | I6: ='h1'!H6+'h2'!H6+'h3'!H6 -> 1 | J6: ='h1'!I6+'h2'!I6+'h3'!I6 -> 15 | K6: 866
A7: 6 | B7: 2024-09-06 | C7: ='h1'!B7+'h2'!B7+'h3'!B7 -> 9 | D7: ='h1'!C7+'h2'!C7+'h3'!C7 -> 127 | E7: ='h1'!D7+'h2'!D7+'h3'!D7 -> 0 | F7: ='h1'!E7+'h2'!E7+'h3'!E7 -> 528 | G7: ='h1'!F7+'h2'!F7+'h3'!F7 -> 177 | H7: ='h1'!G7+'h2'!G7+'h3'!G7 -> 0 | I7: ='h1'!H7+'h2'!H7+'h3'!H7 -> 1 | J7: ='h1'!I7+'h2'!I7+'h3'!I7 -> 15 | K7: 857
A8: 7 | B8: 2024-09-07 | C8: ='h1'!B8+'h2'!B8+'h3'!B8 -> 12 | D8: ='h1'!C8+'h2'!C8+'h3'!C8 -> 120 | E8: ='h1'!D8+'h2'!D8+'h3'!D8 -> 0 | F8: ='h1'!E8+'h2'!E8+'h3'!E8 -> 500 | G8: ='h1'!F8+'h2'!F8+'h3'!F8 -> 170 | H8: ='h1'!G8+'h2'!G8+'h3'!G8 -> 0 | I8: ='h1'!H8+'h2'!H8+'h3'!H8 -> 1 | J8: ='h1'!I8+'h2'!I8+'h3'!I8 -> 13 | K8: 816
A9: 8 | B9: 2024-09-08 | C9: ='h1'!B9+'h2'!B9+'h3'!B9 -> 9 | D9: ='h1'!C9+'h2'!C9+'h3'!C9 -> 120 | E9: ='h1'!D9+'h2'!D9+'h3'!D9 -> 0 | F9: ='h1'!E9+'h2'!E9+'h3'!E9 -> 500 | G9: ='h1'!F9+'h2'!F9+'h3'!F9 -> 157 | H9: ='h1'!G9+'h2'!G9+'h3'!G9 -> 0 | I9: ='h1'!H9+'h2'!H9+'h3'!H9 -> 1 | J9: ='h1'!I9+'h2'!I9+'h3'!I9 -> 13 | K9: 800
A10: 9 | B10: 2024-09-09 | C10: ='h1'!B10+'h2'!B10+'h3'!B10 -> 6 | D10: ='h1'!C10+'h2'!C10+'h3'!C10 -> 133 | E10: ='h1'!D10+'h2'!D10+'h3'!D10 -> 0 | F10: ='h1'!E10+'h2'!E10+'h3'!E10 -> 508 | G10: ='h1'!F10+'h2'!F10+'h3'!F10 -> 213 | H10: ='h1'!G10+'h2'!G10+'h3'!G10 -> 0 | I10: ='h1'!H10+'h2'!H10+'h3'!H10 -> 1 | J10: ='h1'!I10+'h2'!I10+'h3'!I10 -> 19 | K10: 880
A11: 10 | B11: 2024-09-10 | C11: ='h1'!B11+'h2'!B11+'h3'!B11 -> 4 | D11: ='h1'!C11+'h2'!C11+'h3'!C11 -> 136 | E11: ='h1'!D11+'h2'!D11+'h3'!D11 -> 0 | F11: ='h1'!E11+'h2'!E11+'h3'!E11 -> 550 | G11: ='h1'!F11+'h2'!F11+'h3'!F11 -> 170 | H11: ='h1'!G11+'h2'!G11+'h3'!G11 -> 0 | I11: ='h1'!H11+'h2'!H11+'h3'!H11 -> 1 | J11: ='h1'!I11+'h2'!I11+'h3'!I11 -> 15 | K11: 876
A12: 11 | B12: 2024-09-11 | C12: ='h1'!B12+'h2'!B12+'h3'!B12 -> 5 | D12: ='h1'!C12+'h2'!C12+'h3'!C12 -> 120 | E12: ='h1'!D12+'h2'!D12+'h3'!D12 -> 0 | F12: ='h1'!E12+'h2'!E12+'h3'!E12 -> 476 | G12: ='h1'!F12+'h2'!F12+'h3'!F12 -> 152 | H12: ='h1'!G12+'h2'!G12+'h3'!G12 -> 0 | I12: ='h1'!H12+'h2'!H12+'h3'!H12 -> 1 | J12: ='h1'!I12+'h2'!I12+'h3'!I12 -> 17 | K12: 771
A13: 12 | B13: 2024-09-12 | C13: ='h1'!B13+'h2'!B13+'h3'!B13 -> 12 | D13: ='h1'!C13+'h2'!C13+'h3'!C13 -> 126 | E13: ='h1'!D13+'h2'!D13+'h3'!D13 -> 0 | F13: ='h1'!E13+'h2'!E13+'h3'!E13 -> 526 | G13: ='h1'!F13+'h2'!F13+'h3'!F13 -> 190 | H13: ='h1'!G13+'h2'!G13+'h3'!G13 -> 0 | I13: ='h1'!H13+'h2'!H13+'h3'!H13 -> 0 | J13: ='h1'!I13+'h2'!I13+'h3'!I13 -> 19 | K13: 873
A14: 13 | B14: 2024-09-13 | C14: 10 | D14: 121 | E14: ='h1'!D14+'h2'!D14+'h3'!D14 -> 0 | F14: 510 | G14: 174 | H14: ='h1'!G14+'h2'!G14+'h3'!G14 -> 0 | I14: 1 | J14: 16 | K14: 832
A15: 14 | B15: 2024-09-14 | C15: ='h1'!B15+'h2'!B15+'h3'!B15 -> 9 | D15: ='h1'!C15+'h2'!C15+'h3'!C15 -> 133 | E15: ='h1'!D15+'h2'!D15+'h3'!D15 -> 0 | F15: ='h1'!E15+'h2'!E15+'h3'!E15 -> 523 | G15: ='h1'!F15+'h2'!F15+'h3'!F15 -> 213 | H15: ='h1'!G15+'h2'!G15+'h3'!G15 -> 0 | I15: ='h1'!H15+'h2'!H15+'h3'!H15 -> 0 | J15: ='h1'!I15+'h2'!I15+'h3'!I15 -> 16 | K15: 894
A16: 15 | B16: 2024-09-15 | C16: ='h1'!B16+'h2'!B16+'h3'!B16 -> 15 | D16: ='h1'!C16+'h2'!C16+'h3'!C16 -> 114 | E16: ='h1'!D16+'h2'!D16+'h3'!D16 -> 0 | F16: ='h1'!E16+'h2'!E16+'h3'!E16 -> 437 | G16: ='h1'!F16+'h2'!F16+'h3'!F16 -> 199 | H16: ='h1'!G16+'h2'!G16+'h3'!G16 -> 0 | I16: ='h1'!H16+'h2'!H16+'h3'!H16 -> 1 | J16: ='h1'!I16+'h2'!I16+'h3'!I16 -> 19 | K16: 785
A17: 16 | B17: 2024-09-16 | C17: ='h1'!B17+'h2'!B17+'h3'!B17 -> 6 | D17: ='h1'!C17+'h2'!C17+'h3'!C17 -> 131 | E17: ='h1'!D17+'h2'!D17+'h3'!D17 -> 3 | F17: ='h1'!E17+'h2'!E17+'h3'!E17 -> 515 | G17: ='h1'!F17+'h2'!F17+'h3'!F17 -> 179 | H17: ='h1'!G17+'h2'!G17+'h3'!G17 -> 0 | I17: ='h1'!H17+'h2'!H17+'h3'!H17 -> 0 | J17: ='h1'!I17+'h2'!I17+'h3'!I17 -> 14 | K17: 848
A18: 17 | B18: 2024-09-17 | C18: ='h1'!B18+'h2'!B18+'h3'!B18 -> 13 | D18: ='h1'!C18+'h2'!C18+'h3'!C18 -> 125 | E18: ='h1'!D18+'h2'!D18+'h3'!D18 -> 3 | F18: ='h1'!E18+'h2'!E18+'h3'!E18 -> 499 | G18: ='h1'!F18+'h2'!F18+'h3'!F18 -> 184 | H18: ='h1'!G18+'h2'!G18+'h3'!G18 -> 0 | I18: ='h1'!H18+'h2'!H18+'h3'!H18 -> 1 | J18: ='h1'!I18+'h2'!I18+'h3'!I18 -> 21 | K18: 846
A19: 18 | B19: 2024-09-18 | C19: ='h1'!B19+'h2'!B19+'h3'!B19 -> 12 | D19: ='h1'!C19+'h2'!C19+'h3'!C19 -> 118 | E19: ='h1'!D19+'h2'!D19+'h3'!D19 -> 2 | F19: ='h1'!E19+'h2'!E19+'h3'!E19 -> 456 | G19: ='h1'!F19+'h2'!F19+'h3'!F19 -> 204 | H19: ='h1'!G19+'h2'!G19+'h3'!G19 -> 0 | I19: ='h1'!H19+'h2'!H19+'h3'!H19 -> 1 | J19: ='h1'!I19+'h2'!I19+'h3'!I19 -> 18 | K19: 811
A20: 19 | B20: 2024-09-19 | C20: ='h1'!B20+'h2'!B20+'h3'!B20 -> 8 | D20: ='h1'!C20+'h2'!C20+'h3'!C20 -> 133 | E20: ='h1'!D20+'h2'!D20+'h3'!D20 -> 3 | F20: ='h1'!E20+'h2'!E20+'h3'!E20 -> 479 | G20: ='h1'!F20+'h2'!F20+'h3'!F20 -> 224 | H20: ='h1'!G20+'h2'!G20+'h3'!G20 -> 0 | I20: ='h1'!H20+'h2'!H20+'h3'!H20 -> 1 | J20: ='h1'!I20+'h2'!I20+'h3'!I20 -> 21 | K20: 869
A21: 20 | B21: 2024-09-20 | C21: ='h1'!B21+'h2'!B21+'h3'!B21 -> 13 | D21: ='h1'!C21+'h2'!C21+'h3'!C21 -> 127 | E21: ='h1'!D21+'h2'!D21+'h3'!D21 -> 3 | F21: ='h1'!E21+'h2'!E21+'h3'!E21 -> 519 | G21: ='h1'!F21+'h2'!F21+'h3'!F21 -> 212 | H21: ='h1'!G21+'h2'!G21+'h3'!G21 -> 0 | I21: ='h1'!H21+'h2'!H21+'h3'!H21 -> 0 | J21: ='h1'!I21+'h2'!I21+'h3'!I21 -> 24 | K21: 898
A22: 21 | B22: 2024-09-21 | C22: ='h1'!B22+'h2'!B22+'h3'!B22 -> 10 | D22: ='h1'!C22+'h2'!C22+'h3'!C22 -> 120 | E22: ='h1'!D22+'h2'!D22+'h3'!D22 -> 2 | F22: ='h1'!E22+'h2'!E22+'h3'!E22 -> 476 | G22: ='h1'!F22+'h2'!F22+'h3'!F22 -> 177 | H22: ='h1'!G22+'h2'!G22+'h3'!G22 -> 0 | I22: ='h1'!H22+'h2'!H22+'h3'!H22 -> 1 | J22: ='h1'!I22+'h2'!I22+'h3'!I22 -> 17 | K22: 803
A23: 22 | B23: 2024-09-22 | C23: ='h1'!B23+'h2'!B23+'h3'!B23 -> 15 | D23: ='h1'!C23+'h2'!C23+'h3'!C23 -> 118 | E23: ='h1'!D23+'h2'!D23+'h3'!D23 -> 2 | F23: ='h1'!E23+'h2'!E23+'h3'!E23 -> 480 | G23: ='h1'!F23+'h2'!F23+'h3'!F23 -> 198 | H23: ='h1'!G23+'h2'!G23+'h3'!G23 -> 0 | I23: ='h1'!H23+'h2'!H23+'h3'!H23 -> 1 | J23: ='h1'!I23+'h2'!I23+'h3'!I23 -> 20 | K23: 834
A24: 23 | B24: 2024-09-23 | C24: ='h1'!B24+'h2'!B24+'h3'!B24 -> 14 | D24: ='h1'!C24+'h2'!C24+'h3'!C24 -> 122 | E24: ='h1'!D24+'h2'!D24+'h3'!D24 -> 0 | F24: ='h1'!E24+'h2'!E24+'h3'!E24 -> 477 | G24: ='h1'!F24+'h2'!F24+'h3'!F24 -> 190 | H24: ='h1'!G24+'h2'!G24+'h3'!G24 -> 0 | I24: ='h1'!H24+'h2'!H24+'h3'!H24 -> 0 | J24: ='h1'!I24+'h2'!I24+'h3'!I24 -> 20 | K24: 823
A25: 24 | B25: 2024-09-24 | C25: ='h1'!B25+'h2'!B25+'h3'!B25 -> 13 | D25: ='h1'!C25+'h2'!C25+'h3'!C25 -> 128 | E25: ='h1'!D25+'h2'!D25+'h3'!D25 -> 2 | F25: ='h1'!E25+'h2'!E25+'h3'!E25 -> 484 | G25: ='h1'!F25+'h2'!F25+'h3'!F25 -> 223 | H25: ='h1'!G25+'h2'!G25+'h3'!G25 -> 0 | I25: ='h1'!H25+'h2'!H25+'h3'!H25 -> 0 | J25: ='h1'!I25+'h2'!I25+'h3'!I25 -> 22 | K25: 872
A26: 25 | B26: 2024-09-25 | C26: ='h1'!B26+'h2'!B26+'h3'!B26 -> 14 | D26: ='h1'!C26+'h2'!C26+'h3'!C26 -> 123 | E26: ='h1'!D26+'h2'!D26+'h3'!D26 -> 2 | F26: ='h1'!E26+'h2'!E26+'h3'!E26 -> 493 | G26: ='h1'!F26+'h2'!F26+'h3'!F26 -> 212 | H26: ='h1'!G26+'h2'!G26+'h3'!G26 -> 0 | I26: ='h1'!H26+'h2'!H26+'h3'!H26 -> 1 | J26: ='h1'!I26+'h2'!I26+'h3'!I26 -> 17 | K26: 862
A27: 26 | B27: 2024-09-26 | C27: ='h1'!B27+'h2'!B27+'h3'!B27 -> 12 | D27: ='h1'!C27+'h2'!C27+'h3'!C27 -> 115 | E27: ='h1'!D27+'h2'!D27+'h3'!D27 -> 2 | F27: ='h1'!E27+'h2'!E27+'h3'!E27 -> 446 | G27: ='h1'!F27+'h2'!F27+'h3'!F27 -> 188 | H27: ='h1'!G27+'h2'!G27+'h3'!G27 -> 0 | I27: ='h1'!H27+'h2'!H27+'h3'!H27 -> 1 | J27: ='h1'!I27+'h2'!I27+'h3'!I27 -> 18 | K27: 782
A28: 27 | B28: 2024-09-27 | C28: ='h1'!B28+'h2'!B28+'h3'!B28 -> 11 | D28: ='h1'!C28+'h2'!C28+'h3'!C28 -> 131 | E28: ='h1'!D28+'h2'!D28+'h3'!D28 -> 3 | F28: ='h1'!E28+'h2'!E28+'h3'!E28 -> 448 | G28: ='h1'!F28+'h2'!F28+'h3'!F28 -> 217 | H28: ='h1'!G28+'h2'!G28+'h3'!G28 -> 0 | I28: ='h1'!H28+'h2'!H28+'h3'!H28 -> 0 | J28: ='h1'!I28+'h2'!I28+'h3'!I28 -> 17 | K28: 827
A29: 28 | B29: 2024-09-28 | C29: ='h1'!B29+'h2'!B29+'h3'!B29 -> 13 | D29: ='h1'!C29+'h2'!C29+'h3'!C29 -> 124 | E29: ='h1'!D29+'h2'!D29+'h3'!D29 -> 3 | F29: ='h1'!E29+'h2'!E29+'h3'!E29 -> 514 | G29: ='h1'!F29+'h2'!F29+'h3'!F29 -> 201 | H29: ='h1'!G29+'h2'!G29+'h3'!G29 -> 0 | I29: ='h1'!H29+'h2'!H29+'h3'!H29 -> 1 | J29: ='h1'!I29+'h2'!I29+'h3'!I29 -> 22 | K29: 878
A30: 29 | B30: 2024-09-29 | C30: ='h1'!B30+'h2'!B30+'h3'!B30 -> 0 | D30: ='h1'!C30+'h2'!C30+'h3'!C30 -> 0 | E30: ='h1'!D30+'h2'!D30+'h3'!D30 -> 0 | F30: ='h1'!E30+'h2'!E30+'h3'!E30 -> 0 | G30: ='h1'!F30+'h2'!F30+'h3'!F30 -> 0 | H30: ='h1'!G30+'h2'!G30+'h3'!G30 -> 0 | I30: ='h1'!H30+'h2'!H30+'h3'!H30 -> 0 | J30: ='h1'!I30+'h2'!I30+'h3'!I30 -> 0 | K30: 0
A31: 30 | B31: 2024-09-30 | C31: ='h1'!B31+'h2'!B31+'h3'!B31 -> 0 | D31: ='h1'!C31+'h2'!C31+'h3'!C31 -> 0 | E31: ='h1'!D31+'h2'!D31+'h3'!D31 -> 0 | F31: ='h1'!E31+'h2'!E31+'h3'!E31 -> 0 | G31: ='h1'!F31+'h2'!F31+'h3'!F31 -> 0 | H31: ='h1'!G31+'h2'!G31+'h3'!G31 -> 0 | I31: ='h1'!H31+'h2'!H31+'h3'!H31 -> 0 | J31: ='h1'!I31+'h2'!I31+'h3'!I31 -> 0 | K31: 0
A32: 31 | C32: ='h1'!B32+'h2'!B32+'h3'!B32 -> 0 | D32: ='h1'!C32+'h2'!C32+'h3'!C32 -> 0 | E32: ='h1'!D32+'h2'!D32+'h3'!D32 -> 0 | F32: ='h1'!E32+'h2'!E32+'h3'!E32 -> 0 | G32: ='h1'!F32+'h2'!F32+'h3'!F32 -> 0 | H32: ='h1'!G32+'h2'!G32+'h3'!G32 -> 0 | I32: ='h1'!H32+'h2'!H32+'h3'!H32 -> 0 | J32: ='h1'!I32+'h2'!I32+'h3'!I32 -> 0 | K32: 0

Sheet h1
A1: 18 | B1: لارج اح | C1: ميديوم اح | D1: بيض سمول | E1: بيض ميديوم | F1: بيض لارج | G1: دبل 30 بيضة | H1: دبل 20 بيضة | I1: كسر | J1: المجموع | K1: نسبة ابيض | L1: نسبة احمر | M1: ملاحظات
A2: 2024-09-01 | B2: 7 | C2: 126 | E2: 530 | F2: 165 | H2: 0 | I2: 16 | J2: =SUM(B2:I2) -> 844 | K2: =(E2+F2+H2+I2)*(30)/الوفيات!C2 -> 0.9582210243 | L2: =('h1'!B2+'h1'!C2)*30/الوفيات!E2 -> 0.8319432861
A3: 2024-09-02 | B3: 5 | C3: 128 | E3: 553 | F3: 143 | H3: 0 | I3: 16 | J3: 845 | K3: =(E3+F3+H3+I3)*(30)/الوفيات!C3 -> 0.9596549555 | L3: =('h1'!B3+'h1'!C3)*30/الوفيات!E3 -> 0.8319432861
A4: 2024-09-03 | B4: 7 | C4: 127 | E4: 520 | F4: 170 | H4: 1 | I4: 17 | J4: 842 | K4: =(E4+F4+H4+I4)*(30)/الوفيات!C4 -> 0.9544351577 | L4: =('h1'!B4+'h1'!C4)*30/الوفيات!E4 -> 0.8381984987
A5: 2024-09-04 | B5: 5 | C5: 129 | E5: 516 | F5: 159 | H5: 1 | I5: 16 | J5: 826 | K5: =(E5+F5+H5+I5)*(30)/الوفيات!C5 -> 0.9330756438 | L5: =('h1'!B5+'h1'!C5)*30/الوفيات!E5 -> 0.8383733055
A6: 2024-09-05 | B6: 13 | C6: 125 | E6: 527 | F6: 185 | H6: 1 | I6: 15 | J6: 866 | K6: =(E6+F6+H6+I6)*(30)/الوفيات!C6 -> 0.9817936615 | L6: =('h1'!B6+'h1'!C6)*30/الوفيات!E6 -> 0.8637596495
A7: 2024-09-06 | B7: 9 | C7: 127 | E7: 528 | F7: 177 | H7: 1 | I7: 15 | J7: 857 | K7: =(E7+F7+H7+I7)*(30)/الوفيات!C7 -> 0.9726594118 | L7: =('h1'!B7+'h1'!C7)*30/الوفيات!E7 -> 0.8519523909
A8: 2024-09-07 | B8: 12 | C8: 120 | E8: 500 | F8: 170 | H8: 1 | I8: 13 | J8: 816 | K8: =(E8+F8+H8+I8)*(30)/الوفيات!C8 -> 0.9229108572 | L8: =('h1'!B8+'h1'!C8)*30/الوفيات!E8 -> 0.8274132888
A9: 2024-09-08 | B9: 9 | C9: 120 | E9: 500 | F9: 157 | H9: 1 | I9: 13 | J9: 800 | K9: =(E9+F9+H9+I9)*(30)/الوفيات!C9 -> 0.9055738 | L9: =('h1'!B9+'h1'!C9)*30/الوفيات!E9 -> 0.8087774295
A10: 2024-09-09 | B10: 6 | C10: 133 | E10: 508 | F10: 213 | H10: 1 | I10: 19 | J10: 880 | K10: =(E10+F10+H10+I10)*(30)/الوفيات!C10 -> 1.000495072 | L10: =('h1'!B10+'h1'!C10)*30/الوفيات!E10 -> 0.8718377587
A11: 2024-09-10 | B11: 4 | C11: 136 | E11: 550 | F11: 170 | H11: 1 | I11: 15 | J11: 876 | K11: =(E11+F11+H11+I11)*(30)/الوفيات!C11 -> 0.9940572663 | L11: =('h1'!B11+'h1'!C11)*30/الوفيات!E11 -> 0.878477306
A12: 2024-09-11 | B12: 5 | C12: 120 | E12: 476 | F12: 152 | H12: 1 | I12: 17 | J12: 771 | K12: =(E12+F12+H12+I12)*(30)/الوفيات!C12 -> 0.8726585014 | L12: =('h1'!B12+'h1'!C12)*30/الوفيات!E12 -> 0.7843547375
A13: 2024-09-12 | B13: 12 | C13: 126 | E13: 526 | F13: 190 | H13: 0 | I13: 19 | J13: 873 | K13: =(E13+F13+H13+I13)*(30)/الوفيات!C13 -> 0.9930195902 | L13: =('h1'!B13+'h1'!C13)*30/الوفيات!E13 -> 0.8659276302
A14: 2024-09-13 | B14: 10 | C14: 121 | E14: 510 | F14: 174 | H14: 1 | I14: 16 | J14: 832 | K14: =(E14+F14+H14+I14)*(30)/الوفيات!C14 -> 0.9471266438 | L14: =('h1'!B14+'h1'!C14)*30/الوفيات!E14 -> 0.8221757322
A15: 2024-09-14 | B15: 9 | C15: 133 | E15: 523 | F15: 213 | H15: 0 | I15: 16 | J15: 894 | K15: =(E15+F15+H15+I15)*(30)/الوفيات!C15 -> 1.016124673 | L15: =('h1'!B15+'h1'!C15)*30/الوفيات!E15 -> 0.8912133891
A16: 2024-09-15 | B16: 15 | C16: 114 | E16: 437 | F16: 199 | H16: 1 | I16: 19 | J16: 785 | K16: =(E16+F16+H16+I16)*(30)/الوفيات!C16 -> 0.8866861906 | L16: =('h1'!B16+'h1'!C16)*30/الوفيات!E16 -> 0.809623431
A17: 2024-09-16 | B17: 6 | C17: 131 | D17: 3 | E17: 515 | F17: 179 | H17: 0 | I17: 14 | J17: 848 | K17: =(E17+F17+H17+I17)*(30)/الوفيات!C17 -> 0.9571447884 | L17: =('h1'!B17+'h1'!C17)*30/الوفيات!E17 -> 0.859832636
A18: 2024-09-17 | B18: 13 | C18: 125 | D18: 3 | E18: 499 | F18: 184 | H18: 1 | I18: 21 | J18: 846 | K18: =(E18+F18+H18+I18)*(30)/الوفيات!C18 -> 0.9532179557 | L18: =('h1'!B18+'h1'!C18)*30/الوفيات!E18 -> 0.8661087866
A19: 2024-09-18 | B19: 12 | C19: 118 | D19: 2 | E19: 456 | F19: 204 | H19: 1 | I19: 18 | J19: 811 | K19: =(E19+F19+H19+I19)*(30)/الوفيات!C19 -> 0.9181465789 | L19: =('h1'!B19+'h1'!C19)*30/الوفيات!E19 -> 0.8158995816
A20: 2024-09-19 | B20: 8 | C20: 133 | D20: 3 | E20: 479 | F20: 224 | H20: 1 | I20: 21 | J20: 869 | K20: =(E20+F20+H20+I20)*(30)/الوفيات!C20 -> 0.9805247498 | L20: =('h1'!B20+'h1'!C20)*30/الوفيات!E20 -> 0.8849372385
A21: 2024-09-20 | B21: 13 | C21: 127 | D21: 3 | E21: 519 | F21: 212 | H21: 0 | I21: 24 | J21: 898 | K21: =(E21+F21+H21+I21)*(30)/الوفيات!C21 -> 1.021144223 | L21: =('h1'!B21+'h1'!C21)*30/الوفيات!E21 -> 0.8786610879
A22: 2024-09-21 | B22: 10 | C22: 120 | D22: 2 | E22: 476 | F22: 177 | H22: 1 | I22: 17 | J22: 803 | K22: =(E22+F22+H22+I22)*(30)/الوفيات!C22 -> 0.9076971637 | L22: =('h1'!B22+'h1'!C22)*30/الوفيات!E22 -> 0.8160703076
A23: 2024-09-22 | B23: 15 | C23: 118 | D23: 2 | E23: 480 | F23: 198 | H23: 1 | I23: 20 | J23: 834 | K23: =(E23+F23+H23+I23)*(30)/الوفيات!C23 -> 0.9457021737 | L23: =('h1'!B23+'h1'!C23)*30/الوفيات!E23 -> 0.8354271357
A24: 2024-09-23 | B24: 14 | C24: 122 | D24: 0 | E24: 477 | F24: 190 | H24: 0 | I24: 20 | J24: 823 | K24: =(E24+F24+H24+I24)*(30)/الوفيات!C24 -> 0.9296346414 | L24: =('h1'!B24+'h1'!C24)*30/الوفيات!E24 -> 0.8542713568
A25: 2024-09-24 | B25: 13 | C25: 128 | D25: 2 | E25: 484 | F25: 223 | H25: 0 | I25: 22 | J25: 872 | K25: =(E25+F25+H25+I25)*(30)/الوفيات!C25 -> 0.9866462149 | L25: =('h1'!B25+'h1'!C25)*30/الوفيات!E25 -> 0.885678392
A26: 2024-09-25 | B26: 14 | C26: 123 | D26: 2 | E26: 493 | F26: 212 | H26: 1 | I26: 17 | J26: 862 | K26: =(E26+F26+H26+I26)*(30)/الوفيات!C26 -> 0.978834785 | L26: =('h1'!B26+'h1'!C26)*30/الوفيات!E26 -> 0.8609132803
A27: 2024-09-26 | B27: 12 | C27: 115 | D27: 2 | E27: 446 | F27: 188 | H27: 1 | I27: 18 | J27: 782 | K27: =(E27+F27+H27+I27)*(30)/الوفيات!C27 -> 0.8842646926 | L27: =('h1'!B27+'h1'!C27)*30/الوفيات!E27 -> 0.7985747223
A28: 2024-09-27 | B28: 11 | C28: 131 | D28: 3 | E28: 448 | F28: 217 | H28: 0 | I28: 17 | J28: 827 | K28: =(E28+F28+H28+I28)*(30)/الوفيات!C28 -> 0.9236186349 | L28: =('h1'!B28+'h1'!C28)*30/الوفيات!E28 -> 0.8928945714
A29: 2024-09-28 | B29: 13 | C29: 124 | D29: 3 | E29: 514 | F29: 201 | H29: 1 | I29: 22 | J29: 878 | K29: =(E29+F29+H29+I29)*(30)/الوفيات!C29 -> 0.9996387936 | L29: =('h1'!B29+'h1'!C29)*30/الوفيات!E29 -> 0.8614546217
A30: 2024-09-29 | J30: 0 | K30: =(E30+F30+H30+I30)*(30)/الوفيات!C30 -> 0 | L30: =('h1'!B30+'h1'!C30)*30/الوفيات!E30 -> 0
A31: 2024-09-30 | J31: 0 | K31: =(E31+F31+H31+I31)*(30)/الوفيات!C31 -> 0 | L31: =('h1'!B31+'h1'!C31)*30/الوفيات!E31 -> 0
A32: 2024-10-01 | J32: 0 | K32: =(E32+F32+H32+I32)*(30)/الوفيات!C32 -> 0 | L32: =('h1'!B32+'h1'!C32)*30/الوفيات!E32 -> 0

Sheet h3
A1: التاريخ | B1: لارج اح | C1: ميديوم اح | D1: بيض سمول | E1: بيض ميديوم | F1: بيض لارج | G1: دبل 30 بيضة | H1: دبل 20 بيضة | I1: كسر | J1: المجموع | K1: وفيات | L1: المتبقي | M1: نسبة ابيض | N1: وفيات احمر | O1: متبقي | P1: نسبة احمر | Q1: ملاحظات

Sheet h2
A1: التاريخ | B1: لارج اح | C1: ميديوم اح | D1: بيض سمول | E1: بيض ميديوم | F1: بيض لارج | G1: دبل 30 بيضة | H1: دبل 20 بيضة | I1: كسر | J1: المجموع | K1: نسبة ابيض | L1: ملاحظات

Sheet الوفيات
A1: التاريخ | B1: وفيات هـ1 | C1: المتبقي هـ1 | D1: وفيات اح هـ1 | E1: متبقي اح | F1: وفيات هـ2 | G1: المتبقي هـ2 | H1: وفيات هـ3 | I1: المتبقي هـ3 | J1: وفيات ص هـ 4 | K1: متبقي ص | L1: عمر صوص يوم | M1: عمر صوص اسبوع | N1: عمر هنكار1 يوم | O1: عمر هنكار1 اسبوع
A2: 2024-09-01 | B2: 4 | C2: 22260 | D2: 1 | E2: 4796 | J2: 11 | K2: 35093 | L2: =DATEDIF( "15-06-2024",TODAY(),"D") -> 202 | M2: =DATEDIF( "15-06-2024",TODAY(),"D")/7 -> 28.85714286 | N2: =DATEDIF( "03-10-2023",TODAY(),"D") -> 458 | O2: =DATEDIF( "03-10-2023",TODAY(),"D")/7 -> 65.42857143
A3: 2024-09-02 | B3: 2 | C3: =C2-B3 -> 22258 | D3: 0 | E3: =E2-D3 -> 4796 | J3: 10 | K3: =K2-J3 -> 35083
A4: 2024-09-03 | B4: 4 | C4: 22254 | D4: 0 | E4: 4796 | J4: 11 | K4: 35072
A5: 2024-09-04 | B5: 5 | C5: 22249 | D5: 1 | E5: 4795 | J5: 8 | K5: 35064
A6: 2024-09-05 | B6: 4 | C6: 22245 | D6: 2 | E6: 4793 | J6: 6 | K6: 35058
A7: 2024-09-06 | B7: 7 | C7: 22238 | D7: 4 | E7: 4789 | J7: 7 | K7: 35051
A8: 2024-09-07 | B8: 4 | C8: 22234 | D8: 3 | E8: 4786 | J8: 8 | K8: 35043
A9: 2024-09-08 | B9: 5 | C9: 22229 | D9: 1 | E9: 4785 | J9: 8 | K9: 35035
A10: 2024-09-09 | B10: 10 | C10: 22219 | D10: 2 | E10: 4783 | J10: 15 | K10: 35020
A11: 2024-09-10 | B11: 7 | C11: 22212 | D11: 2 | E11: 4781 | J11: 7 | K11: 35013
A12: 2024-09-11 | B12: 4 | C12: 22208 | D12: 0 | E12: 4781 | J12: 10 | K12: 35003
A13: 2024-09-12 | B13: 3 | C13: 22205 | D13: 0 | E13: 4781 | J13: 12 | K13: 34991
A14: 2024-09-13 | B14: 1 | C14: 22204 | D14: 1 | E14: 4780 | J14: 13 | K14: 34978
A15: 2024-09-14 | B15: 2 | C15: 22202 | D15: 0 | E15: 4780 | J15: 10 | K15: 34968
A16: 2024-09-15 | B16: 7 | C16: 22195 | D16: 0 | E16: 4780 | J16: 10 | K16: 34958
A17: 2024-09-16 | B17: 4 | C17: 22191 | D17: 0 | E17: 4780 | J17: 14 | K17: 34944
A18: 2024-09-17 | B18: 3 | C18: 22188 | D18: 0 | E18: 4780 | J18: 10 | K18: 34934
A19: 2024-09-18 | B19: 2 | C19: 22186 | D19: 0 | E19: 4780 | J19: 21 | K19: 34913
A20: 2024-09-19 | B20: 4 | C20: 22182 | D20: 0 | E20: 4780 | G20: 17000 | I20: 17500 | J20: 413 | K20: 34500
A21: 2024-09-20 | B21: 1 | C21: 22181 | D21: 0 | E21: 4780 | G21: 17000 | I21: 17500 | K21: 34500
A22: 2024-09-21 | B22: 4 | C22: 22177 | D22: 1 | E22: 4779 | F22: 15 | G22: =G21-F22 -> 16985 | H22: 12 | I22: =I21-H22 -> 17488 | K22: 34500
A23: 2024-09-22 | B23: 3 | C23: 22174 | D23: 3 | E23: 4776 | F23: 8 | G23: 16977 | H23: 10 | I23: 17478 | K23: 34500
A24: 2024-09-23 | B24: 4 | C24: 22170 | D24: 0 | E24: 4776 | F24: 5 | G24: 16972 | H24: 15 | I24: 17463 | K24: 34500
A25: 2024-09-24 | B25: 4 | C25: 22166 | D25: 0 | E25: 4776 | F25: 6 | G25: 16966 | H25: 5 | I25: 17458 | K25: 34500
A26: 2024-09-25 | B26: 7 | C26: 22159 | D26: 2 | E26: 4774 | F26: 4 | G26: 16962 | H26: 4 | I26: 17454 | K26: 34500
A27: 2024-09-26 | B27: 5 | C27: 22154 | D27: 3 | E27: 4771 | F27: 12 | G27: 16950 | H27: 2 | I27: 17452 | K27: 34500
A28: 2024-09-27 | B28: 2 | C28: 22152 | D28: 0 | E28: 4771 | F28: 5 | G28: 16945 | H28: 4 | I28: 17448 | K28: 34500
A29: 2024-09-28 | B29: 4 | C29: 22148 | D29: 0 | E29: 4771 | F29: 5 | G29: 16940 | H29: 2 | I29: 17446 | K29: 34500
A30: 2024-09-29 | B30: 8 | C30: 22140 | D30: 2 | E30: 4769 | F30: 4 | G30: 16936 | H30: 9 | I30: 17437 | K30: 34500
A31: 2024-09-30 | C31: 22140 | E31: 4769 | G31: 16936 | I31: 17437 | K31: 34500
A32: 2024-10-01 | C32: 22140 | E32: 4769 | G32: 16936 | I32: 17437 | K32: 34500

Sheet مستودع العلف
A1: البيان | B1: التاريخ | C1: الهنكار | D1: ع الخلطات | E1: ذرة | F1: صويا | G1: ع شمس | H1: نحاتة | I1: نخالة | J1: ديكالسيوم | K1: فيتامين | L1: ملح | M1: ميثونين | N1: صودا | O1: خميرة | P1: مضاد فطور | Q1: لايسين | R1: معادن | S1: كالسيوم ثلاثي | T1: انزيم | U1: كولين | V1: بريمكس صوص | W1: المجموع | X1: كرتون بيض
A2: الباقي | E2: =E3+E4-(E5) -> 49460 | F2: 13721 | G2: 20636 | H2: 30468 | I2: -1320 | J2: 2061 | K2: 2307 | L2: 1357.5 | M2: 1013.6 | N2: 696 | O2: 1074.5 | P2: 1011 | Q2: 172 | R2: 23.5 | S2: 414 | T2: 299 | U2: 360.4 | V2: 130 | W2: =SUM(E2:V2) -> 123884.5
A3: المدور من ش 8 | E3: 26958 | F3: 4351 | G3: 11256 | H3: 6158 | I3: 0 | J3: 248 | K3: 1307 | L3: 700.5 | M3: 1203.6 | N3: 929 | O3: 1246.5 | P3: 1149 | Q3: 409 | R3: 23.5 | S3: 414 | T3: 353 | U3: 483.4 | V3: 475
A4: مشتريات علف | E4: =SUMIF('مشتريات علف'!A:A, "ذرة", 'مشتريات علف'!B:B) -> 106830 | F4: =SUMIF('مشتريات علف'!A:A, "صويا", 'مشتريات علف'!B:B) -> 27820 | G4: =SUMIF('مشتريات علف'!A:A, "ع شمس", 'مشتريات علف'!B:B) -> 27230 | H4: =SUMIF('مشتريات علف'!A:A, "نحاتة", 'مشتريات علف'!B:B) -> 32840 | I4: =SUMIF('مشتريات علف'!A:A, "نخالة", 'مشتريات علف'!B:B) -> 4500 | J4: =SUMIF('مشتريات علف'!A:A, "ديكالسيوم", 'مشتريات علف'!B:B) -> 3000 | K4: =SUMIF('مشتريات علف'!A:A, "فيتامين", 'مشتريات علف'!B:B) -> 1000 | L4: =SUMIF('مشتريات علف'!A:A, "ملح", 'مشتريات علف'!B:B) -> 1000
A5: استهلاك علف | E5: =SUM(E7:E13) -> 84328 | F5: 18450 | G5: 17850 | H5: 8530 | I5: 5820 | J5: 1187 | K5: 0 | L5: 343 | M5: 190 | N5: 233 | O5: 172 | P5: 138 | Q5: 237 | R5: 0 | S5: 0 | T5: 54 | U5: 123 | V5: 345 | W5: 138000
A7: استهلاك هـ1 | B7: 2024-09-01 | C7: h1 | D7: 43 | E7: ='خلطات العلف'!D2*43 -> 27025.5 | F7: ='خلطات العلف'!E2*43 -> 6450 | G7: ='خلطات العلف'!F2*43 -> 4300 | H7: ='خلطات العلف'!G2*43 -> 4300 | I7: ='خلطات العلف'!H2*43 -> 0 | J7: ='خلطات العلف'!I2*43 -> 344 | K7: ='خلطات العلف'!J2*43 -> 0 | L7: ='خلطات العلف'!K2*43 -> 107.5 | M7: ='خلطات العلف'!L2*43 -> 64.5 | N7: ='خلطات العلف'!M2*43 -> 86 | O7: ='خلطات العلف'!N2*43 -> 43 | P7: ='خلطات العلف'!O2*43 -> 43 | Q7: ='خلطات العلف'!P2*43 -> 64.5 | R7: ='خلطات العلف'!Q2*43 -> 0 | S7: ='خلطات العلف'!R2*43 -> 0 | T7: ='خلطات العلف'!S2*43 -> 21.5 | U7: ='خلطات العلف'!T2*43 -> 43 | V7: ='خلطات العلف'!U2*43 -> 107.5 | W7: =SUM(E7:V7) -> 43000
A8: استهلاك هـ4 | B8: 2024-09-01 | C8: h4 | D8: 30 | E8: ='خلطات العلف'!D3*30 -> 18930 | F8: ='خلطات العلف'!E3*30 -> 4500 | G8: ='خلطات العلف'!F3*30 -> 5250 | H8: ='خلطات العلف'!G3*30 -> 600 | I8: ='خلطات العلف'!H3*30 -> 0 | J8: ='خلطات العلف'!I3*30 -> 300 | K8: ='خلطات العلف'!J3*30 -> 0 | L8: ='خلطات العلف'!K3*30 -> 60 | M8: ='خلطات العلف'!L3*30 -> 30 | N8: ='خلطات العلف'!M3*30 -> 75 | O8: ='خلطات العلف'!N3*30 -> 60 | P8: ='خلطات العلف'!O3*30 -> 30 | Q8: ='خلطات العلف'!P3*30 -> 45 | R8: ='خلطات العلف'!Q3*30 -> 0 | S8: ='خلطات العلف'!R3*30 -> 0 | T8: ='خلطات العلف'!S3*30 -> 15 | U8: ='خلطات العلف'!T3*30 -> 30 | V8: ='خلطات العلف'!U3*30 -> 75 | W8: ='خلطات العلف'!V3*30 -> 30000
A9: استهلاك هـ4 | B9: 2024-09-13 | C9: h4 | D9: 4 | E9: ='خلطات العلف'!D5*4 -> 2164 | F9: ='خلطات العلف'!E5*4 -> 600 | G9: ='خلطات العلف'!F5*4 -> 700 | H9: ='خلطات العلف'!G5*4 -> 80 | I9: ='خلطات العلف'!H5*4 -> 360 | J9: ='خلطات العلف'!I5*4 -> 40 | K9: ='خلطات العلف'!J5*4 -> 0 | L9: ='خلطات العلف'!K5*4 -> 8 | M9: ='خلطات العلف'!L5*4 -> 4 | N9: ='خلطات العلف'!M5*4 -> 10 | O9: ='خلطات العلف'!N5*4 -> 8 | P9: ='خلطات العلف'!O5*4 -> 4 | Q9: ='خلطات العلف'!P5*4 -> 6 | R9: ='خلطات العلف'!Q5*4 -> 0 | S9: ='خلطات العلف'!R5*4 -> 0 | T9: ='خلطات العلف'!S5*4 -> 2 | U9: ='خلطات العلف'!T5*4 -> 4 | V9: ='خلطات العلف'!U5*4 -> 10 | W9: ='خلطات العلف'!V5*4 -> 4000
A10: استهلاك هـ4 | B10: 2024-09-19 | C10: h4 | D10: 30 | E10: ='خلطات العلف'!D6*30 -> 18585 | F10: ='خلطات العلف'!E6*30 -> 2250 | G10: ='خلطات العلف'!F6*30 -> 4500 | H10: ='خلطات العلف'!G6*30 -> 450 | I10: ='خلطات العلف'!H6*30 -> 3600 | J10: ='خلطات العلف'!I6*30 -> 255 | K10: ='خلطات العلف'!J6*30 -> 0 | L10: ='خلطات العلف'!K6*30 -> 90 | M10: ='خلطات العلف'!L6*30 -> 45 | N10: ='خلطات العلف'!M6*30 -> 0 | O10: ='خلطات العلف'!N6*30 -> 30 | P10: ='خلطات العلف'!O6*30 -> 30 | Q10: ='خلطات العلف'!P6*30 -> 75 | R10: ='خلطات العلف'!Q6*30 -> 0 | S10: ='خلطات العلف'!R6*30 -> 0 | T10: ='خلطات العلف'!S6*30 -> 0 | U10: ='خلطات العلف'!T6*30 -> 15 | V10: ='خلطات العلف'!U6*30 -> 75 | W10: ='خلطات العلف'!V6*30 -> 30000
A11: استهلاك هـ1 | B11: 2024-09-19 | C11: h1 | D11: 31 | E11: ='خلطات العلف'!D4*31 -> 17623.5 | F11: ='خلطات العلف'!E4*31 -> 4650 | G11: ='خلطات العلف'!F4*31 -> 3100 | H11: ='خلطات العلف'!G4*31 -> 3100 | I11: ='خلطات العلف'!H4*31 -> 1860 | J11: ='خلطات العلف'!I4*31 -> 248 | K11: ='خلطات العلف'!J4*31 -> 0 | L11: ='خلطات العلف'!K4*31 -> 77.5 | M11: ='خلطات العلف'!L4*31 -> 46.5 | N11: ='خلطات العلف'!M4*31 -> 62 | O11: ='خلطات العلف'!N4*31 -> 31 | P11: ='خلطات العلف'!O4*31 -> 31 | Q11: ='خلطات العلف'!P4*31 -> 46.5 | R11: ='خلطات العلف'!Q4*31 -> 0 | S11: ='خلطات العلف'!R4*31 -> 0 | T11: ='خلطات العلف'!S4*31 -> 15.5 | U11: ='خلطات العلف'!T4*31 -> 31 | V11: ='خلطات العلف'!U4*31 -> 77.5 | W11: ='خلطات العلف'!V4*31 -> 31000

Sheet خلطات العلف
A1: رقم الخلطة | B1: التاريخ | C1: اسم الهنكار | D1: ذرة | E1: صويا | F1: ع شمس | G1: نحاتة | H1: نخالة | I1: ديكالسيوم | J1: فيتامين | K1: ملح | L1: ميثونين | M1: صودا | N1: خميرة | O1: مضاد فطور | P1: لايسين | Q1: معادن | R1: كالسيوم ثلاثي | S1: انزيم | T1: كولين | U1: بريمكس صوص | V1: المجموع
A2: 8 | B2: 2024-09-01 | C2: h1 | D2: 628.5 | E2: 150 | F2: 100 | G2: 100 | H2: 0 | I2: 8 | J2: 0 | K2: 2.5 | L2: 1.5 | M2: 2 | N2: 1 | O2: 1 | P2: 1.5 | S2: 0.5 | T2: 1 | U2: 2.5 | V2: =SUM(D2:U2) -> 1000
A3: 4صوص | B3: 2024-09-01 | C3: h4 | D3: 631 | E3: 150 | F3: 175 | G3: 20 | I3: 10 | K3: 2 | L3: 1 | M3: 2.5 | N3: 2 | O3: 1 | P3: 1.5 | S3: 0.5 | T3: 1 | U3: 2.5 | V3: 1000
A4: 9 | B4: 2024-09-13 | C4: h1 | D4: 568.5 | E4: 150 | F4: 100 | G4: 100 | H4: 60 | I4: 8 | J4: 0 | K4: 2.5 | L4: 1.5 | M4: 2 | N4: 1 | O4: 1 | P4: 1.5 | S4: 0.5 | T4: 1 | U4: 2.5 | V4: 1000
A5: 5 صوص | B5: 2024-09-13 | D5: 541 | E5: 150 | F5: 175 | G5: 20 | H5: 90 | I5: 10 | K5: 2 | L5: 1 | M5: 2.5 | N5: 2 | O5: 1 | P5: 1.5 | S5: 0.5 | T5: 1 | U5: 2.5 | V5: 1000
A6: 6 صوص | B6: 2024-09-14 | D6: 619.5 | E6: 75 | F6: 150 | G6: 15 | H6: 120 | I6: 8.5 | K6: 3 | L6: 1.5 | N6: 1 | O6: 1 | P6: 2.5 | T6: 0.5 | U6: 2.5 | V6: 1000

Sheet مشتريات علف
A1: اسم المادة | B1: الكمية | C1: السعر | D1: المورد
A2: صويا | B2: 27820 | D2: اكينوفا
A3: ديكالسيوم | B3: 3000 | D3: امازون
A4: ذرة | B4: 29760 | D4: دونتلر
A5: ذرة | B5: 28180 | D5: دونتلر
A6: ذرة | B6: 18100 | D6: يافوزلي
A7: ع شمس | B7: 27230 | D7: اكينوفا
A8: نخالة | B8: 4500 | D8: مطحنة تفاحة
A9: فيتامين | B9: 1000 | D9: امازون
A10: ذرة | B10: 15930 | D10: يافوزلي
A11: نحاتة | B11: 32840 | D11: مموش
A12: ذرة | B12: 14860 | D12: يافوزلي
A13: ملح | B13: 1000

Sheet طلبات اليوم
A1: طابع زمني | B1: حالة الطلب | C1: الاسم الثلاثي | D1: الطلب | E1: ملاحظات | F1: وقت التنفيذ

Sheet طلبات منفذة
A1: طابع زمني | B1: حالة الطلب | C1: الاسم الثلاثي | D1: الطلب | E1: ملاحظات | F1: وقت التنفيذ
